fUST/lending_fUST_20250128
["ID","MTS","AMOUNT","RATE_DAILY","PERIOD"]
[350677681,1738056644531,-151.0,0.00016438,2]
[350677682,1738056644542,-502.79395254,0.00016438,2]
[350677683,1738056644553,-500.0,0.00016438,2]
[350677684,1738056644563,-500.0,0.00016438,2]
[350677685,1738056644574,-500.0,0.00016438,2]
[350677686,1738056644586,-500.0,0.00016438,2]
[350677687,1738056644596,-500.0,0.00016438,2]
[350677688,1738056644607,-500.0,0.00016438,2]
[350677689,1738056644618,-500.0,0.00016438,2]
[350677690,1738056644629,-500.0,0.00016438,2]
[350677691,1738056644766,-500.0,0.00016438,2]
[350677692,1738056644777,-500.0,0.00016438,2]
[350677693,1738056644786,-500.0,0.00016438,2]
[350677694,1738056644796,-500.0,0.00016438,2]
[350677695,1738056644805,-500.0,0.00016438,2]
[350677696,1738056644815,-152.145839,0.00016438,2]
[350677697,1738056644825,-500.0,0.00016438,2]
[350677698,1738056644834,-158.124823,0.00016438,2]
[350677699,1738056644845,-500.0,0.00016438,2]
[350677700,1738056644854,-553.52957183,0.00016438,2]
[350677701,1738056644864,-151.0,0.00016438,2]
[350677702,1738056644874,-151.0,0.00016438,2]
[350677703,1738056644884,-151.0,0.00016438,2]
[350677704,1738056644894,-625.88370795,0.00016438,2]
[350677705,1738056644904,-500.0,0.00016438,2]
[350677706,1738056644913,-500.0,0.00016438,2]
[350677707,1738056644923,-500.0,0.00016438,2]
[350677708,1738056644932,-500.0,0.00016438,2]
[350677709,1738056644942,-500.0,0.00016438,2]
[350677710,1738056644951,-500.0,0.00016438,2]
[350677711,1738056644961,-230.97963408,0.00016438,2]
[350677712,1738056644970,-500.0,0.00016438,2]
[350677713,1738056644980,-420.49882486,0.00016438,2]
[350677714,1738056644990,-500.0,0.00016438,2]
[350677715,1738056644999,-500.0,0.00016438,2]
[350677716,1738056645009,-513.87304444,0.00016438,2]
[350677717,1738056645019,-500.0,0.00016438,2]
[350677718,1738056645029,-500.0,0.00016438,2]
[350677719,1738056645038,-501.88123653,0.00016438,2]
[350677720,1738056645048,-500.0,0.00016438,2]
[350677721,1738056645057,-500.0,0.00016438,2]
[350677722,1738056645067,-290.09,0.00016438,2]
[350677723,1738056645076,-500.0,0.00016438,2]
[350677724,1738056645085,-500.0,0.00016438,2]
[350677725,1738056645095,-151.0,0.00016438,2]
[350677726,1738056645104,-151.0,0.00016438,2]
[350677727,1738056645114,-500.0,0.00016438,2]
[350677728,1738056645123,-151.0,0.00016438,2]
[350677729,1738056645132,-151.0,0.00016438,2]
[350677730,1738056645142,-151.0,0.00016438,2]
[350677731,1738056645151,-151.0,0.00016438,2]
[350677732,1738056645160,-574.36,0.00016438,2]
[350677733,1738056645170,-151.0,0.00016438,2]
[350677734,1738056645179,-151.0,0.00016438,2]
[350677735,1738056645188,-500.0,0.00016438,2]
[350677736,1738056645198,-151.0,0.00016438,2]
[350677737,1738056645207,-151.0,0.00016438,2]
[350677738,1738056645217,-151.0,0.00016438,2]
[350677739,1738056645227,-151.0,0.00016438,2]
[350677740,1738056645236,-151.0,0.00016438,2]
[350677741,1738056645246,-151.0,0.00016438,2]
[350677742,1738056645255,-201.469227,0.00016438,2]
[350677743,1738056645264,-151.0,0.00016438,2]
[350677744,1738056645274,-500.0,0.00016438,2]
[350677745,1738056645284,-500.0,0.00016438,2]
[350677746,1738056645294,-500.0,0.00016438,2]
[350677747,1738056645303,-151.0,0.00016438,2]
[350677749,1738056645313,-151.0,0.00016438,2]
[350677751,1738056645326,-151.0,0.00016438,2]
[350677753,1738056645336,-151.0,0.00016438,2]
[350677754,1738056645345,-151.0,0.00016438,2]
[350677755,1738056645354,-500.0,0.00016438,2]
[350677756,1738056645364,-151.0,0.00016438,2]
[350677757,1738056645373,-151.0,0.00016438,2]
[350677758,1738056645382,-151.0,0.00016438,2]
[350677759,1738056645391,-151.0,0.00016438,2]
[350677760,1738056645400,-151.0,0.00016438,2]
[350677762,1738056645410,-232.645541,0.00016438,2]
[350677763,1738056645420,-500.0,0.00016438,2]
[350677765,1738056645429,-500.0,0.00016438,2]
[350677766,1738056645443,-500.0,0.00016438,2]
[350677767,1738056645453,-500.0,0.00016438,2]
[350677768,1738056645462,-500.0,0.00016438,2]
[350677769,1738056645471,-500.0,0.00016438,2]
[350677770,1738056645480,-500.0,0.00016438,2]
[350677771,1738056645490,-500.0,0.00016438,2]
[350677772,1738056645499,-352.50268344,0.00016438,2]
[350677773,1738056645509,-500.0,0.00016438,2]
[350677774,1738056645518,-500.0,0.00016438,2]
[350677776,1738056645528,-500.0,0.00016438,2]
[350677778,1738056645538,-500.0,0.00016438,2]
[350677780,1738056645547,-151.0,0.00016438,2]
[350677781,1738056645556,-151.0,0.00016438,2]
[350677783,1738056645566,-151.0,0.00016438,2]
[350677785,1738056645575,-151.0,0.00016438,2]
[350677788,1738056645584,-151.0,0.00016438,2]
[350677791,1738056645593,-151.0,0.00016438,2]
[350677793,1738056645603,-500.0,0.00016438,2]
[350677794,1738056645612,-151.0,0.00016438,2]
[350677795,1738056645623,-151.0,0.00016438,2]
[350677796,1738056645632,-151.0,0.00016438,2]
[350677797,1738056645642,-151.0,0.00016438,2]
[350677798,1738056645651,-151.0,0.00016438,2]
[350677799,1738056645660,-151.0,0.00016438,2]
[350677800,1738056645669,-151.0,0.00016438,2]
[350677801,1738056645679,-151.0,0.00016438,2]
[350677803,1738056645689,-151.0,0.00016438,2]
[350677804,1738056645699,-151.0,0.00016438,2]
[350677805,1738056645709,-259.016,0.00016438,2]
[350677806,1738056645719,-151.0,0.00016438,2]
[350677807,1738056645728,-500.0,0.00016438,2]
[350677808,1738056645738,-151.0,0.00016438,2]
[350677809,1738056645748,-500.0,0.00016438,2]
[350677810,1738056645758,-500.62885598,0.00016438,2]
[350677811,1738056645768,-500.0,0.00016438,2]
[350677812,1738056645778,-500.0,0.00016438,2]
[350677813,1738056645788,-500.0,0.00016438,2]
[350677814,1738056645798,-500.0,0.00016438,2]
[350677815,1738056645808,-500.0,0.00016438,2]
[350677816,1738056645818,-500.0,0.00016438,2]
[350677817,1738056645828,-500.0,0.00016438,2]
[350677818,1738056645837,-500.0,0.00016438,2]
[350677819,1738056645847,-505.89681791,0.00016438,2]
[350677820,1738056645857,-500.0,0.00016438,2]
[350677821,1738056645866,-500.0,0.00016438,2]
[350677822,1738056645876,-500.0,0.00016438,2]
[350677823,1738056645885,-500.0,0.00016438,2]
[350677824,1738056645895,-500.0,0.00016438,2]
[350677825,1738056645905,-500.0,0.00016438,2]
[350677826,1738056645915,-500.0,0.00016438,2]
[350677827,1738056645924,-500.0,0.00016438,2]
[350677828,1738056645934,-503.23447647,0.00016438,2]
[350677829,1738056645943,-500.0,0.00016438,2]
[350677830,1738056645952,-500.0,0.00016438,2]
[350677831,1738056645962,-501.19623816,0.00016438,2]
[350677832,1738056645971,-500.0,0.00016438,2]
[350677833,1738056645981,-151.0,0.00016438,2]
[350677834,1738056645990,-500.0,0.00016438,2]
[350677835,1738056646000,-151.0,0.00016438,2]
[350677836,1738056646009,-151.0,0.00016438,2]
[350677837,1738056646018,-151.0,0.00016438,2]
[350677838,1738056646027,-151.0,0.00016438,2]
[350677839,1738056646037,-151.0,0.00016438,2]
[350677840,1738056646046,-500.0,0.00016438,2]
[350677841,1738056646055,-151.0,0.00016438,2]
[350677844,1738056646065,-151.0,0.00016438,2]
[350677845,1738056646075,-151.0,0.00016438,2]
[350677847,1738056646084,-151.0,0.00016438,2]
[350677849,1738056646094,-151.0,0.00016438,2]
[350677850,1738056646103,-151.0,0.00016438,2]
[350677851,1738056646113,-151.0,0.00016438,2]
[350677852,1738056646123,-151.0,0.00016438,2]
[350677853,1738056646132,-151.0,0.00016438,2]
[350677854,1738056646141,-500.0,0.00016438,2]
[350677855,1738056646150,-500.0,0.00016438,2]
[350677856,1738056646160,-262.782822,0.00016438,2]
[350677857,1738056646169,-500.0,0.00016438,2]
[350677858,1738056646178,-500.0,0.00016438,2]
[350677859,1738056646187,-558.49,0.00016438,2]
[350677860,1738056646197,-500.0,0.00016438,2]
[350677861,1738056646206,-500.0,0.00016438,2]
[350677862,1738056646216,-500.0,0.00016438,2]
[350677863,1738056646226,-500.0,0.00016438,2]
[350677864,1738056646235,-500.0,0.00016438,2]
[350677865,1738056646245,-500.0,0.00016438,2]
[350677866,1738056646255,-500.0,0.00016438,2]
[350677867,1738056646264,-500.0,0.00016438,2]
[350677868,1738056646274,-500.0,0.00016438,2]
[350677869,1738056646283,-500.0,0.00016438,2]
[350677870,1738056646293,-514.63382503,0.00016438,2]
[350677871,1738056646303,-500.0,0.00016438,2]
[350677872,1738056646312,-500.0,0.00016438,2]
[350677873,1738056646321,-500.0,0.00016438,2]
[350677874,1738056646331,-500.0,0.00016438,2]
[350677875,1738056646340,-500.0,0.00016438,2]
[350677876,1738056646353,-500.0,0.00016438,2]
[350677877,1738056646370,-500.0,0.00016438,2]
[350677878,1738056646389,-631.54762995,0.00016438,2]
[350677879,1738056646399,-500.0,0.00016438,2]
[350677880,1738056646408,-500.0,0.00016438,2]
[350677881,1738056646418,-500.0,0.00016438,2]
[350677882,1738056646428,-503.07390449,0.00016438,2]
[350677883,1738056646441,-500.0,0.00016438,2]
[350677884,1738056646451,-500.0,0.00016438,2]
[350677885,1738056646461,-500.0,0.00016438,2]
[350677886,1738056646471,-500.0,0.00016438,2]
[350677887,1738056646480,-500.0,0.00016438,2]
[350677888,1738056646490,-500.0,0.00016438,2]
[350677889,1738056646499,-500.0,0.00016438,2]
[350677891,1738056646510,-500.0,0.00016438,2]
[350677893,1738056646520,-500.0,0.00016438,2]
[350677894,1738056646529,-500.0,0.00016438,2]
[350677895,1738056646538,-500.0,0.00016438,2]
[350677896,1738056646548,-500.0,0.00016438,2]
[350677897,1738056646557,-500.0,0.00016438,2]
[350677898,1738056646566,-500.0,0.00016438,2]
[350677899,1738056646575,-500.0,0.00016438,2]
[350677900,1738056646584,-461.57698612,0.00016438,2]
[350677901,1738056646593,-500.0,0.00016438,2]
[350677902,1738056646603,-500.0,0.00016438,2]
[350677903,1738056646611,-500.0,0.00016438,2]
[350677904,1738056646621,-500.0,0.00016438,2]
[350677905,1738056646630,-2683.27,0.00016438,2]
[350677906,1738056646639,-500.0,0.00016438,2]
[350677907,1738056646648,-500.0,0.00016438,2]
[350677908,1738056646657,-151.0,0.00016438,2]
[350677909,1738056646667,-158.862389,0.00016438,2]
[350677910,1738056646676,-500.0,0.00016438,2]
[350677911,1738056646685,-500.0,0.00016438,2]
[350677912,1738056646694,-500.0,0.00016438,2]
[350677913,1738056646703,-500.0,0.00016438,2]
[350677914,1738056646713,-500.0,0.00016438,2]
[350677915,1738056646723,-500.0,0.00016438,2]
[350677916,1738056646734,-500.0,0.00016438,2]
[350677917,1738056646745,-235.97150709,0.00016438,2]
[350677918,1738056646755,-500.0,0.00016438,2]
[350677919,1738056646764,-500.0,0.00016438,2]
[350677920,1738056646773,-500.0,0.00016438,2]
[350677921,1738056646783,-500.0,0.00016438,2]
[350677922,1738056646793,-500.0,0.00016438,2]
[350677923,1738056646803,-500.0,0.00016438,2]
[350677924,1738056646812,-500.0,0.00016438,2]
[350677925,1738056646821,-500.0,0.00016438,2]
[350677926,1738056646832,-500.0,0.00016438,2]
[350677927,1738056646841,-500.0,0.00016438,2]
[350677928,1738056646850,-500.0,0.00016438,2]
[350677929,1738056646860,-500.0,0.00016438,2]
[350677930,1738056646869,-500.0,0.00016438,2]
[350677931,1738056646879,-500.0,0.00016438,2]
[350677932,1738056646889,-500.0,0.00016438,2]
[350677933,1738056646899,-300.0,0.00016438,2]
[350677934,1738056646908,-500.0,0.00016438,2]
[350677935,1738056646917,-500.0,0.00016438,2]
[350677936,1738056646927,-500.0,0.00016438,2]
[350677937,1738056646936,-502.41675497,0.00016438,2]
[350677938,1738056646946,-151.0,0.00016438,2]
[350677939,1738056646956,-151.0,0.00016438,2]
[350677940,1738056646965,-500.0,0.00016438,2]
[350677941,1738056646974,-500.0,0.00016438,2]
[350677942,1738056646983,-151.0,0.00016438,2]
[350677943,1738056646992,-151.0,0.00016438,2]
[350677944,1738056647002,-500.0,0.00016438,2]
[350677945,1738056647011,-500.0,0.00016438,2]
[350677946,1738056647019,-500.0,0.00016438,2]
[350677947,1738056647029,-500.0,0.00016438,2]
[350677948,1738056647038,-500.0,0.00016438,2]
[350677949,1738056647048,-500.0,0.00016438,2]
[350677950,1738056647057,-500.0,0.00016438,2]
[350677951,1738056647066,-500.0,0.00016438,2]
[350677952,1738056647075,-151.0,0.00016438,2]
[350677953,1738056647084,-500.0,0.00016438,2]
[350677954,1738056647094,-500.0,0.00016438,2]
[350677955,1738056647103,-500.0,0.00016438,2]
[350677956,1738056647112,-500.0,0.00016438,2]
[350677957,1738056647121,-806.16,0.00016438,2]
[350677958,1738056647131,-500.0,0.00016438,2]
[350677959,1738056647140,-806.16,0.00016438,2]
[350677960,1738056647149,-806.16,0.00016438,2]
[350677961,1738056647159,-806.16,0.00016438,2]
[350677962,1738056647168,-806.16,0.00016438,2]
[350677963,1738056647177,-806.16,0.00016438,2]
[350677964,1738056647186,-806.16,0.00016438,2]
[350677965,1738056647195,-806.16,0.00016438,2]
[350677966,1738056647204,-806.16,0.00016438,2]
[350677967,1738056647213,-806.16,0.00016438,2]
[350677968,1738056647223,-500.0,0.00016438,2]
[350677969,1738056647232,-806.16,0.00016438,2]
[350677970,1738056647242,-500.0,0.00016438,2]
[350677971,1738056647250,-500.93660918,0.00016438,2]
[350677972,1738056647259,-500.0,0.00016438,2]
[350677973,1738056647268,-500.0,0.00016438,2]
[350677974,1738056647277,-151.0,0.00016438,2]
[350677975,1738056647286,-151.0,0.00016438,2]
[350677976,1738056647296,-151.0,0.00016438,2]
[350677977,1738056647390,-151.0,0.00016438,2]
[350677978,1738056647400,-151.0,0.00016438,2]
[350677979,1738056647409,-151.0,0.00016438,2]
[350677980,1738056647418,-151.0,0.00016438,2]
[350677981,1738056647427,-249.206842,0.00016438,2]
[350677982,1738056647439,-151.0,0.00016438,2]
[350677983,1738056647448,-500.0,0.00016438,2]
[350677984,1738056647457,-500.0,0.00016438,2]
[350677985,1738056647466,-503.32043886,0.00016438,2]
[350677986,1738056647475,-500.0,0.00016438,2]
[350677987,1738056647484,-238.34794175,0.00016438,2]
[350677988,1738056647494,-500.0,0.00016438,2]
[350677989,1738056647502,-532.92688599,0.00016438,2]
[350677990,1738056647511,-500.0,0.00016438,2]
[350677991,1738056647520,-500.0,0.00016438,2]
[350677992,1738056647529,-542.31,0.00016438,2]
[350677993,1738056647539,-500.0,0.00016438,2]
[350677994,1738056647548,-500.0,0.00016438,2]
[350677995,1738056647557,-500.0,0.00016438,2]
[350677996,1738056647567,-500.0,0.00016438,2]
[350677997,1738056647576,-500.0,0.00016438,2]
[350677998,1738056647585,-509.74452317,0.00016438,2]
[350677999,1738056647595,-151.0,0.00016438,2]
[350678000,1738056647604,-500.0,0.00016438,2]
[350678001,1738056647613,-851.86,0.00016438,2]
[350678002,1738056647623,-500.0,0.00016438,2]
[350678003,1738056647632,-500.0,0.00016438,2]
[350678004,1738056647641,-500.0,0.00016438,2]
[350678005,1738056647650,-500.0,0.00016438,2]
[350678006,1738056647660,-500.0,0.00016438,2]
[350678007,1738056647669,-500.0,0.00016438,2]
[350678008,1738056647678,-7149.5,0.00016438,2]
[350678009,1738056647688,-500.0,0.00016438,2]
[350678010,1738056647697,-500.0,0.00016438,2]
[350678011,1738056647707,-500.0,0.00016438,2]
[350678012,1738056647716,-500.0,0.00016438,2]
[350678013,1738056647725,-500.0,0.00016438,2]
[350678014,1738056647734,-500.0,0.00016438,2]
[350678015,1738056647743,-500.0,0.00016438,2]
[350678016,1738056647753,-500.0,0.00016438,2]
[350678017,1738056647762,-1361.36,0.00016438,2]
[350678018,1738056647771,-500.0,0.00016438,2]
[350678019,1738056647781,-500.0,0.00016438,2]
[350678020,1738056647791,-577.87581573,0.00016438,2]
[350678021,1738056647801,-500.0,0.00016438,2]
[350678022,1738056647812,-500.0,0.00016438,2]
[350678023,1738056647821,-500.0,0.00016438,2]
[350678024,1738056647831,-500.0,0.00016438,2]
[350678025,1738056647840,-500.0,0.00016438,2]
[350678026,1738056647850,-500.0,0.00016438,2]
[350678027,1738056647860,-500.0,0.00016438,2]
[350678028,1738056647870,-500.0,0.00016438,2]
[350678029,1738056647879,-500.0,0.00016438,2]
[350678030,1738056647895,-500.0,0.00016438,2]
[350678031,1738056647904,-500.0,0.00016438,2]
[350678032,1738056647915,-500.0,0.00016438,2]
[350678033,1738056647924,-500.0,0.00016438,2]
[350678034,1738056647935,-497.74,0.00016438,2]
[350678035,1738056647944,-151.0,0.00016438,2]
[350678036,1738056647954,-151.0,0.00016438,2]
[350678037,1738056647963,-151.0,0.00016438,2]
[350678038,1738056647973,-824.63828696,0.00016441,2]
[350678039,1738056647982,-506.72338282,0.00016473,2]
[350678040,1738056647992,-472.3246363,0.00016473,2]
[350678041,1738056648010,-502.7555163,0.00016473,2]
[350678042,1738056648020,-151.0,0.00016475,2]
[350678043,1738056648031,-824.63828696,0.00016475,2]
[350678044,1738056648042,-806.16,0.00016573,2]
[350678045,1738056648051,-806.16,0.00016573,2]
[350678046,1738056648061,-806.16,0.00016573,2]
[350678047,1738056648071,-806.16,0.00016573,2]
[350678048,1738056648081,-206.38415798,0.00016574,2]
[350678049,1738056648092,-151.0,0.00016574,2]
[350678050,1738056648102,-129.38814336,0.00016574,2]
[350678051,1738056648202,-21.61185664,0.00016574,2]
[350678052,1738056648212,-500.0,0.00016574,2]
[350678053,1738056648222,-500.0,0.00016574,2]
[350678054,1738056648232,-500.0,0.00016574,2]
[350678055,1738056648241,-500.0,0.00016574,2]
[350678056,1738056648250,-500.0,0.00016574,2]
[350678057,1738056648259,-500.0,0.00016574,2]
[350678058,1738056648269,-500.0,0.00016574,2]
[350678059,1738056648278,-500.0,0.00016574,2]
[350678060,1738056648287,-806.16,0.00016574,2]
[350678061,1738056648297,-806.16,0.00016574,2]
[350678062,1738056648306,-806.16,0.00016574,2]
[350678063,1738056648316,-806.16,0.00016574,2]
[350678064,1738056648326,-806.16,0.00016574,2]
[350678065,1738056648335,-806.16,0.00016574,2]
[350678066,1738056648345,-806.16,0.00016574,2]
[350678067,1738056648354,-806.16,0.00016574,2]
[350678068,1738056648364,-806.37,0.00016574,2]
[350678069,1738056648373,-19575.0403955,0.00016575,5]
[350678070,1738056648383,-720.36716067,0.00016575,5]
[350678071,1738056765087,153.0,0.0001508,2]
[350678072,1738056768554,153.0,0.00015079,2]
[350678073,1738056836422,153.0,0.0001505,2]
[350678074,1738056840096,153.0,0.00015049,2]
[350678075,1738056849117,184.833994,0.00013699,2]
[350678076,1738056888849,153.0,0.00015029,2]
[350678077,1738056893585,153.0,0.00015027,2]
[350678078,1738056945434,153.0,0.00015005,2]
[350678079,1738056950190,153.0,0.00015003,2]
[350678081,1738057045250,241.101595,0.00013973,2]
[350678082,1738057087223,10000.0,0.00015101,2]
[350678083,1738057362832,1940.99830496,0.00015101,2]
[350678084,1738057364111,153.0,0.00014827,2]
[350678085,1738057367825,153.0,0.00014825,2]
[350678086,1738057386666,5000.0,0.00015101,2]
[350678087,1738057429848,153.0,0.00014799,2]
[350678088,1738057433230,153.0,0.00014798,2]
[350678089,1738057627149,-162.6012162,0.00015242,2]
[350678090,1738057627170,-464.6108098,0.00015303,2]
[350678091,1738057627192,-300.0,0.00015412,2]
[350678092,1738057627213,-1010.795594,0.00015413,2]
[350678093,1738057629186,-1108.98675475,0.00015413,2]
[350678094,1738057642094,-296.45326236,0.00015413,2]
[350678095,1738057756137,-300.0,0.00015412,2]
[350678096,1738057756159,-21922.52245287,0.00015413,2]
[350678097,1738057765145,-561.24193602,0.00015413,2]
[350678098,1738057765166,-99.06246398,0.00015573,2]
[350678110,1738057834821,-99.17676682,0.00015573,2]
[350678111,1738057834831,-257.426,0.0001574,2]
[350678112,1738057834841,-143.89975865,0.00016145,2]
[350678113,1738057834854,-252.0119934,0.00016145,2]
[350678115,1738057838026,-32.93925137,0.00016145,2]
[350679291,1738057889325,184.540365,0.00013699,2]
[350679293,1738057893150,238.800015,0.00013973,2]
[350679294,1738057937264,1615.17,0.0002072,120]
[350679298,1738058240850,353.93373966,0.00015101,2]
[350679299,1738058249370,266.839468,0.00015101,2]
[350679300,1738058433815,184.0952822,0.00015101,2]
[350679301,1738058442170,184.0952822,0.00015101,2]
[350679302,1738058450310,3276.9440594,0.00015101,2]
[350679303,1738058466832,3276.9440594,0.00015101,2]
[350679304,1738058482288,3276.9440594,0.00015101,2]
[350679305,1738058498217,1344.41367551,0.00015101,2]
[350679306,1738058529960,3480.57248803,0.0001515,2]
[350679307,1738058535074,173.83,0.00010959,2]
[350679308,1738058538439,2032.86386478,0.0001515,2]
[350679309,1738058545807,869.19,0.00010959,2]
[350679310,1738058561391,2618.05107436,0.0001515,2]
[350679311,1738058569424,1674.8112243,0.0001515,2]
[350679312,1738058569518,5304.01960119,0.0002072,120]
[350679313,1738058704201,199.823409,0.0001515,2]
[350679314,1738058829097,-408.16877974,0.00015394,2]
[350679315,1738058830090,-540.3224408,0.00015394,2]
[350679316,1738058839139,-395.964522,0.00015394,2]
[350679317,1738058842177,-916.26402096,0.00015394,2]
[350679319,1738058868663,319.277104,0.00013973,2]
[350679320,1738058913521,184.938302,0.00013699,2]
[350679322,1738058947101,-496.4432694,0.00015196,2]
[350679323,1738058947122,-734.2701306,0.00015394,2]
[350679324,1738058949124,-3824.8616,0.00015394,2]
[350680238,1738059043396,-141.2944442,0.00015394,2]
[350680239,1738059043405,-65.02309462,0.0001574,2]
[350682704,1738059523506,2434.933485,0.00014849,2]
[350682705,1738059774559,315.068706,0.00013973,2]
[350682708,1738059918816,184.799989,0.00013699,2]
[350682710,1738060023755,13369.6789548,0.00015091,2]
[350682711,1738060051133,-732.9911002,0.00015189,2]
[350682712,1738060051154,-232.5133031,0.00015213,2]
[350682713,1738060051176,-300.0,0.0001529,2]
[350682714,1738060051197,-325.11583856,0.0001546,2]
[350682715,1738060099561,6344.3874773,0.000125,2]
[350682716,1738060119264,29039.73890353,0.00015,2]
[350682724,1738060150120,-228.79244234,0.00015304,2]
[350682725,1738060150142,-300.0,0.00015459,2]
[350682726,1738060150162,-10224.87495766,0.0001546,2]
[350682729,1738060166190,-184.246737,0.00015305,2]
[350682730,1738060166210,-133.920063,0.0001546,2]
[350682774,1738060232699,-256.223,0.0001574,2]
[350682775,1738060232709,-182.8611028,0.00016,2]
[350682776,1738060232719,-223.71789553,0.00016221,2]
[350682777,1738060232728,-434.62032984,0.00016222,2]
[350682778,1738060232738,-434.62032981,0.00016249,2]
[350682779,1738060232747,-434.62032981,0.00016276,2]
[350682780,1738060232757,-354.2307862,0.000163,2]
[350682781,1738060232767,-354.2307862,0.000163,2]
[350682782,1738060232777,-434.62032981,0.00016303,2]
[350682783,1738060232789,-151.0,0.00016316,2]
[350682784,1738060232798,-300.0,0.0001632,2]
[350682785,1738060232807,-343.30411691,0.0001632,2]
[350682786,1738060232816,-500.0,0.0001632,2]
[350682787,1738060232826,-668.43673115,0.0001632,2]
[350682788,1738060232835,-500.0,0.0001632,2]
[350682789,1738060232845,-668.43673115,0.0001632,2]
[350682790,1738060232854,-500.0,0.0001632,2]
[350682791,1738060232864,-500.0,0.0001632,2]
[350682792,1738060232874,-500.0,0.0001632,2]
[350682793,1738060232884,-500.0,0.0001632,2]
[350682794,1738060232893,-500.0,0.0001632,2]
[350682795,1738060232902,-500.0,0.0001632,2]
[350682796,1738060232912,-267.3,0.0001632,2]
[350682797,1738060232921,-500.0,0.0001632,2]
[350682798,1738060232931,-500.0,0.0001632,2]
[350682799,1738060232940,-500.0,0.0001632,2]
[350682800,1738060232949,-425.14984783,0.0001632,2]
[350682801,1738060232959,-500.0,0.0001632,2]
[350682802,1738060232968,-500.0,0.0001632,2]
[350682803,1738060232977,-500.0,0.0001632,2]
[350682804,1738060232986,-453.32868036,0.0001632,2]
[350682805,1738060232995,-454.2808204,0.0001632,2]
[350682806,1738060233004,-500.0,0.0001632,2]
[350682807,1738060233013,-500.0,0.0001632,2]
[350682808,1738060233023,-668.43673115,0.0001632,2]
[350682809,1738060233033,-500.0,0.0001632,2]
[350682810,1738060233043,-668.43673115,0.0001632,2]
[350682811,1738060233053,-668.43673115,0.0001632,2]
[350682812,1738060233063,-500.0,0.0001632,2]
[350682813,1738060233073,-152.0,0.00016321,2]
[350682814,1738060233082,-151.0,0.00016321,2]
[350682815,1738060233092,-151.0,0.00016322,2]
[350682816,1738060233102,-151.0,0.00016322,2]
[350682817,1738060233112,-151.0,0.00016322,2]
[350682818,1738060233122,-151.0,0.00016322,2]
[350682819,1738060233293,-234.422606,0.00016322,2]
[350682820,1738060233302,-156.117108,0.00016322,2]
[350682821,1738060233312,-151.0,0.00016322,2]
[350682822,1738060233321,-151.0,0.00016322,2]
[350682823,1738060233330,-151.0,0.00016322,2]
[350682824,1738060233340,-151.0,0.00016322,2]
[350682825,1738060233350,-151.0,0.00016322,2]
[350682826,1738060233359,-151.0,0.00016322,2]
[350682827,1738060233369,-151.0,0.00016322,2]
[350682828,1738060233378,-151.0,0.00016323,2]